[Event "Live Chess"]
[Site "Chess.com"]
[Date "2023.05.21"]
[Round "-"]
[White "f4nomore"]
[Black "booktrunk"]
[Result "1-0"]
[WhiteElo "1394"]
[BlackElo "1282"]
[TimeControl "300"]
[EndTime "1:28:32 PDT"]
[Termination "f4nomore won by checkmate"]

1. b3 {[%clk 0:04:57.7]} 1... d5 {[%clk 0:04:59.9]} 2. Bb2 {[%clk 0:04:57]} 2...
f6 {[%clk 0:04:58.2]} 3. e3 {[%clk 0:04:56.9]} 3... e5 {[%clk 0:04:57.4]} 4. Nc3
{[%clk 0:04:55.3]} 4... Nc6 {[%clk 0:04:55.5]} 5. Nge2 {[%clk 0:04:54]} 5... a6
{[%clk 0:04:53]} 6. g3 {[%clk 0:04:53.1]} 6... Bc5 {[%clk 0:04:52]} 7. Bg2
{[%clk 0:04:52.1]} 7... d4 {[%clk 0:04:49.6]} 8. exd4 {[%clk 0:04:49.6]} 8...
exd4 {[%clk 0:04:48.6]} 9. Bxc6+ {[%clk 0:04:41.5]} 9... bxc6 {[%clk 0:04:47]}
10. Ne4 {[%clk 0:04:40.1]} 10... Bb6 {[%clk 0:04:45]} 11. d3 {[%clk 0:04:36.8]}
11... Ne7 {[%clk 0:04:39]} 12. O-O {[%clk 0:04:33.9]} 12... c5 {[%clk
0:04:36.4]} 13. Nd2 {[%clk 0:04:27.1]} 13... Bh3 {[%clk 0:04:33.2]} 14. Re1
{[%clk 0:04:22]} 14... Qd5 {[%clk 0:04:31.8]} 15. Nf4 {[%clk 0:04:19.1]} 15...
Qf5 {[%clk 0:04:26.1]} 16. Rxe7+ {[%clk 0:04:06.7]} 16... Kxe7 {[%clk 0:04:24]}
17. Qe2+ {[%clk 0:04:03.1]} 17... Kf7 {[%clk 0:04:21.3]} 18. Nxh3 {[%clk
0:03:48.1]} 18... Qxh3 {[%clk 0:04:20]} 19. Qf3 {[%clk 0:03:44.3]} 19... Rab8
{[%clk 0:04:12.7]} 20. Nc4 {[%clk 0:03:37.4]} 20... Rhe8 {[%clk 0:04:07.6]} 21.
Qd5+ {[%clk 0:03:14.7]} 21... Qe6 {[%clk 0:04:05.2]} 22. Qf3 {[%clk 0:02:59.7]}
22... g6 {[%clk 0:03:59]} 23. Rf1 {[%clk 0:02:37.9]} 23... Qe2 {[%clk
0:03:52.5]} 24. Qc6 {[%clk 0:02:25.3]} 24... Qe6 {[%clk 0:03:50.8]} 25. Qg2
{[%clk 0:02:22.8]} 25... a5 {[%clk 0:03:45.7]} 26. a4 {[%clk 0:02:17]} 26...
Rbd8 {[%clk 0:03:40.9]} 27. Qf3 {[%clk 0:02:02.8]} 27... Rd5 {[%clk 0:03:39.1]}
28. Qf4 {[%clk 0:01:42.1]} 28... Re7 {[%clk 0:03:36.1]} 29. Qh6 {[%clk
0:01:34.4]} 29... Kg8 {[%clk 0:03:34.5]} 30. h4 {[%clk 0:01:19.2]} 30... Rh5
{[%clk 0:03:27.6]} 31. Qf4 {[%clk 0:01:10.6]} 31... g5 {[%clk 0:03:21.9]} 32.
hxg5 {[%clk 0:00:59.6]} 32... Rxg5 {[%clk 0:03:19.1]} 33. Qh4 {[%clk 0:00:50.6]}
33... h5 {[%clk 0:03:16.4]} 34. Kg2 {[%clk 0:00:35.6]} 34... Qe2 {[%clk
0:03:10.9]} 35. Bc1 {[%clk 0:00:31.8]} 35... Rg4 {[%clk 0:03:07.2]} 36. Qxh5
{[%clk 0:00:28.1]} 36... Reg7 {[%clk 0:03:00.3]} 37. Qd5+ {[%clk 0:00:20]} 37...
Kh7 {[%clk 0:02:54.1]} 38. Rh1+ {[%clk 0:00:13.8]} 38... Kg6 {[%clk 0:02:53.3]}
39. Qh5# {[%clk 0:00:05.4]} 1-0

[Event "Live Chess"]
[Site "Chess.com"]
[Date "2023.05.21"]
[Round "-"]
[White "Biranidun"]
[Black "Delacorta"]
[Result "1-0"]
[WhiteElo "2543"]
[BlackElo "1439"]
[TimeControl "300"]
[EndTime "1:28:39 PDT"]
[Termination "Biranidun won by resignation"]

1. e4 {[%clk 0:04:58]} 1... e6 {[%clk 0:04:59.1]} 2. d4 {[%clk 0:04:56.6]} 2...
d5 {[%clk 0:04:58.2]} 3. e5 {[%clk 0:04:49.7]} 3... c5 {[%clk 0:04:56.9]} 4. c3
{[%clk 0:04:49.2]} 4... Nc6 {[%clk 0:04:54.5]} 5. Nf3 {[%clk 0:04:48.6]} 5...
Qb6 {[%clk 0:04:47.3]} 6. Bd3 {[%clk 0:04:47.2]} 6... Nge7 {[%clk 0:04:40.5]} 7.
dxc5 {[%clk 0:04:43.7]} 7... Qxc5 {[%clk 0:04:39.2]} 8. O-O {[%clk 0:04:43.6]}
8... Ng6 {[%clk 0:04:36.7]} 9. Re1 {[%clk 0:04:40.4]} 9... Qb6 {[%clk
0:04:18.5]} 10. h4 {[%clk 0:04:38.8]} 10... Bc5 {[%clk 0:04:05.3]} 11. Qe2
{[%clk 0:04:38]} 11... Bd7 {[%clk 0:03:54.9]} 12. h5 {[%clk 0:04:37.1]} 12...
Nge7 {[%clk 0:03:54.1]} 13. b4 {[%clk 0:04:34.3]} 13... Nxb4 {[%clk 0:03:40.1]}
14. cxb4 {[%clk 0:04:34.2]} 14... Bxb4 {[%clk 0:03:35.9]} 15. Bd2 {[%clk
0:04:30.8]} 15... Rc8 {[%clk 0:03:30.8]} 16. Bxb4 {[%clk 0:04:28.8]} 16... Qxb4
{[%clk 0:03:29.5]} 17. Nbd2 {[%clk 0:04:27.4]} 17... Qg4 {[%clk 0:03:17.9]} 18.
Rab1 {[%clk 0:04:25.2]} 18... Bc6 {[%clk 0:03:14.4]} 19. Nb3 {[%clk 0:04:15.9]}
19... Qxh5 {[%clk 0:02:41]} 20. Nfd4 {[%clk 0:04:10.9]} 20... Qg5 {[%clk
0:02:17.3]} 21. Na5 {[%clk 0:04:06.1]} 21... O-O {[%clk 0:02:05.7]} 22. Nxb7
{[%clk 0:04:05]} 22... Bxb7 {[%clk 0:01:50.9]} 23. Rxb7 {[%clk 0:04:04.9]} 1-0

[Event "Live Chess"]
[Site "Chess.com"]
[Date "2023.05.21"]
[Round "-"]
[White "raminguy"]
[Black "ProfPoisson"]
[Result "1-0"]
[WhiteElo "1952"]
[BlackElo "1194"]
[TimeControl "300"]
[EndTime "1:28:48 PDT"]
[Termination "raminguy won by resignation"]

1. d4 {[%clk 0:04:58.3]} 1... e6 {[%clk 0:04:57.2]} 2. Nc3 {[%clk 0:04:58.2]}
2... f5 {[%clk 0:04:54.6]} 3. Bf4 {[%clk 0:04:57.6]} 3... Nf6 {[%clk 0:04:51.5]}
4. Nb5 {[%clk 0:04:55.8]} 4... d6 {[%clk 0:04:39.8]} 5. e3 {[%clk 0:04:50.1]}
5... c6 {[%clk 0:04:29.7]} 6. Nc3 {[%clk 0:04:48.2]} 6... e5 {[%clk 0:04:26.5]}
7. dxe5 {[%clk 0:04:46.1]} 7... dxe5 {[%clk 0:04:24.3]} 8. Qxd8+ {[%clk
0:04:44.6]} 8... Kxd8 {[%clk 0:04:20.8]} 9. O-O-O+ {[%clk 0:04:43.3]} 9... Bd7
{[%clk 0:04:16.7]} 10. Bxe5 {[%clk 0:04:41.9]} 10... Be7 {[%clk 0:04:09.8]} 11.
Nf3 {[%clk 0:04:38.7]} 11... Re8 {[%clk 0:04:06.5]} 12. Bc4 {[%clk 0:04:32.1]}
12... b5 {[%clk 0:04:01.2]} 13. Bf7 {[%clk 0:04:24.1]} 13... Rf8 {[%clk
0:03:58.4]} 14. Be6 {[%clk 0:04:22.8]} 14... Ne4 {[%clk 0:03:51]} 15. Rxd7+
{[%clk 0:03:55.2]} 15... Nxd7 {[%clk 0:03:45.4]} 16. Rd1 {[%clk 0:03:54.4]}
16... Nc5 {[%clk 0:03:26.8]} 17. Bxd7 {[%clk 0:03:41.2]} 17... Nxd7 {[%clk
0:03:24.8]} 18. Bf4 {[%clk 0:03:37.9]} 18... g5 {[%clk 0:03:20.3]} 19. Nxg5
{[%clk 0:03:31.1]} 19... Ke8 {[%clk 0:03:05.8]} 20. Ne6 {[%clk 0:03:27.1]} 20...
Rf6 {[%clk 0:03:00.9]} 21. Nc7+ {[%clk 0:03:24.3]} 1-0

[Event "Live Chess"]
[Site "Chess.com"]
[Date "2023.05.21"]
[Round "-"]
[White "Doge_Dandolo"]
[Black "FailsGambits"]
[Result "1-0"]
[WhiteElo "1885"]
[BlackElo "1335"]
[TimeControl "300"]
[EndTime "1:28:49 PDT"]
[Termination "Doge_Dandolo won by checkmate"]

1. Nf3 {[%clk 0:04:58.8]} 1... d5 {[%clk 0:04:58.3]} 2. c4 {[%clk 0:04:57.6]}
2... e6 {[%clk 0:04:53.8]} 3. g3 {[%clk 0:04:54.9]} 3... Nf6 {[%clk 0:04:52.7]}
4. Bg2 {[%clk 0:04:50.6]} 4... g6 {[%clk 0:04:49.1]} 5. O-O {[%clk 0:04:48.6]}
5... Bg7 {[%clk 0:04:48.6]} 6. d4 {[%clk 0:04:47.3]} 6... O-O {[%clk 0:04:44]}
7. Qc2 {[%clk 0:04:45.8]} 7... Bd7 {[%clk 0:04:22.9]} 8. Rd1 {[%clk 0:04:42.3]}
8... Nc6 {[%clk 0:04:13.7]} 9. Bf4 {[%clk 0:04:39.1]} 9... Nh5 {[%clk
0:04:05.2]} 10. Bg5 {[%clk 0:04:36.8]} 10... Nf6 {[%clk 0:03:49.6]} 11. Nbd2
{[%clk 0:04:32.3]} 11... h6 {[%clk 0:03:47.4]} 12. Bf4 {[%clk 0:04:28.3]} 12...
Re8 {[%clk 0:03:25.4]} 13. cxd5 {[%clk 0:04:22]} 13... Nxd5 {[%clk 0:03:23.1]}
14. a3 {[%clk 0:04:13]} 14... Nxf4 {[%clk 0:03:12.6]} 15. gxf4 {[%clk
0:04:11.6]} 15... Nxd4 {[%clk 0:02:52.6]} 16. Nxd4 {[%clk 0:04:09.7]} 16... Bxd4
{[%clk 0:02:52.5]} 17. Nf3 {[%clk 0:04:07.6]} 17... Bg7 {[%clk 0:02:51.1]} 18.
Ne5 {[%clk 0:04:00.5]} 18... Bxe5 {[%clk 0:02:49.3]} 19. fxe5 {[%clk 0:03:59.5]}
19... Qc8 {[%clk 0:02:26.5]} 20. Rd3 {[%clk 0:03:56.1]} 20... Bb5 {[%clk
0:02:02]} 21. Rg3 {[%clk 0:03:54]} 21... Kg7 {[%clk 0:01:33.6]} 22. Be4 {[%clk
0:03:48.9]} 22... Rg8 {[%clk 0:00:59.4]} 23. Bxg6 {[%clk 0:03:43.1]} 23... fxg6
{[%clk 0:00:54.1]} 24. Qxg6+ {[%clk 0:03:40.9]} 24... Kh8 {[%clk 0:00:53.3]} 25.
Qxh6# {[%clk 0:03:39]} 1-0

[Event "Live Chess"]
[Site "Chess.com"]
[Date "2023.05.21"]
[Round "-"]
[White "TKDRyan"]
[Black "JohanKjeldahl"]
[Result "0-1"]
[WhiteElo "1137"]
[BlackElo "1904"]
[TimeControl "300"]
[EndTime "1:29:02 PDT"]
[Termination "JohanKjeldahl won on time"]

1. e4 {[%clk 0:04:58.5]} 1... c5 {[%clk 0:04:58.4]} 2. Nf3 {[%clk 0:04:57.2]}
2... e6 {[%clk 0:04:57.3]} 3. d4 {[%clk 0:04:56.7]} 3... cxd4 {[%clk 0:04:56]}
4. Nxd4 {[%clk 0:04:55.2]} 4... Nc6 {[%clk 0:04:55.5]} 5. Nxc6 {[%clk
0:04:53.9]} 5... bxc6 {[%clk 0:04:54.1]} 6. Bd3 {[%clk 0:04:52.8]} 6... Nf6
{[%clk 0:04:53]} 7. Be3 {[%clk 0:04:51.8]} 7... d5 {[%clk 0:04:51.2]} 8. e5
{[%clk 0:04:50]} 8... Nd7 {[%clk 0:04:49.2]} 9. f4 {[%clk 0:04:47.8]} 9... c5
{[%clk 0:04:47.6]} 10. O-O {[%clk 0:04:45.8]} 10... Be7 {[%clk 0:04:46]} 11. Qg4
{[%clk 0:04:38.5]} 11... O-O {[%clk 0:04:42.1]} 12. Rf3 {[%clk 0:04:33.8]} 12...
f5 {[%clk 0:04:38.4]} 13. exf6 {[%clk 0:04:19.8]} 13... Nxf6 {[%clk 0:04:36.4]}
14. Bxh7+ {[%clk 0:04:03.8]} 14... Kxh7 {[%clk 0:04:33.7]} 15. Qh4+ {[%clk
0:04:00.4]} 15... Kg8 {[%clk 0:04:32.2]} 16. Rh3 {[%clk 0:03:58.2]} 16... d4
{[%clk 0:04:16.4]} 17. Bf2 {[%clk 0:03:28.6]} 17... e5 {[%clk 0:04:13.9]} 18. g4
{[%clk 0:03:19.4]} 18... Bxg4 {[%clk 0:04:04]} 19. fxe5 {[%clk 0:03:06.9]} 19...
Bxh3 {[%clk 0:04:00.8]} 20. exf6 {[%clk 0:03:02.7]} 20... Bxf6 {[%clk
0:03:57.5]} 21. Qxh3 {[%clk 0:03:01.1]} 21... Qc8 {[%clk 0:03:45.2]} 22. Qb3+
{[%clk 0:02:58.8]} 22... c4 {[%clk 0:03:40.5]} 23. Qb5 {[%clk 0:02:52.7]} 23...
Qg4+ {[%clk 0:03:35.6]} 24. Bg3 {[%clk 0:02:50.7]} 24... Qd1+ {[%clk 0:03:29.2]}
25. Kg2 {[%clk 0:02:47.4]} 25... Qxc2+ {[%clk 0:03:24]} 26. Kh3 {[%clk
0:02:43.4]} 26... Qe2 {[%clk 0:03:16.5]} 27. Qd5+ {[%clk 0:02:33.6]} 27... Kh8
{[%clk 0:03:05.1]} 28. Na3 {[%clk 0:02:28.1]} 28... Rad8 {[%clk 0:02:50.1]} 29.
Qxc4 {[%clk 0:01:25.8]} 29... Qxb2 {[%clk 0:02:45.4]} 30. Rf1 {[%clk 0:00:55.9]}
30... Qxa3 {[%clk 0:02:41.3]} 31. Rf5 {[%clk 0:00:55.4]} 31... g6 {[%clk
0:02:23.3]} 32. Rxf6 {[%clk 0:00:40.3]} 32... Rxf6 {[%clk 0:02:20.8]} 33. Qc7
{[%clk 0:00:27.1]} 33... Rdf8 {[%clk 0:02:16]} 34. Kh4 {[%clk 0:00:23.5]} 34...
R8f7 {[%clk 0:02:02.6]} 35. Qd8+ {[%clk 0:00:20.2]} 35... Kh7 {[%clk 0:01:59.8]}
36. Be5 {[%clk 0:00:14.4]} 36... Qf8 {[%clk 0:01:34.3]} 37. Qxd4 {[%clk
0:00:08.4]} 37... Rf4+ {[%clk 0:01:29.4]} 38. Bxf4 {[%clk 0:00:04.1]} 38...
Rxf4+ {[%clk 0:01:28.4]} 39. Qxf4 {[%clk 0:00:02.8]} 39... Qxf4+ {[%clk
0:01:26.3]} 0-1

[Event "Live Chess"]
[Site "Chess.com"]
[Date "2023.05.21"]
[Round "-"]
[White "SaraTang"]
[Black "Mugzwang"]
[Result "0-1"]
[WhiteElo "153"]
[BlackElo "1554"]
[TimeControl "300"]
[EndTime "1:29:14 PDT"]
[Termination "Mugzwang won by resignation"]

1. e4 {[%clk 0:04:59.2]} 1... c5 {[%clk 0:04:58.3]} 2. Bc4 {[%clk 0:04:56.4]}
2... e6 {[%clk 0:04:56.5]} 3. Nh3 {[%clk 0:04:53.7]} 3... d5 {[%clk 0:04:51.5]}
4. exd5 {[%clk 0:04:50]} 4... exd5 {[%clk 0:04:50.5]} 5. Bb3 {[%clk 0:04:48.4]}
5... Nf6 {[%clk 0:04:39]} 6. f4 {[%clk 0:04:45.5]} 6... b5 {[%clk 0:04:24.4]} 7.
Ng5 {[%clk 0:04:41.8]} 7... c4 {[%clk 0:04:22.1]} 8. Ba4 {[%clk 0:04:34.7]} 8...
bxa4 {[%clk 0:04:20.7]} 9. Nxf7 {[%clk 0:04:27.4]} 9... Kxf7 {[%clk 0:04:17.2]}
10. O-O {[%clk 0:04:22.5]} 10... Bc5+ {[%clk 0:04:10.7]} 11. Kh1 {[%clk
0:04:20.3]} 11... Rf8 {[%clk 0:04:03.4]} 12. Rf2 {[%clk 0:04:17.6]} 12... Bxf2
{[%clk 0:04:01]} 0-1

[Event "Live Chess"]
[Site "Chess.com"]
[Date "2023.05.21"]
[Round "-"]
[White "BJAW87"]
[Black "RamsayFlayer"]
[Result "0-1"]
[WhiteElo "1434"]
[BlackElo "1973"]
[TimeControl "300"]
[EndTime "1:29:15 PDT"]
[Termination "RamsayFlayer won by resignation"]

1. e4 {[%clk 0:04:59.1]} 1... e5 {[%clk 0:04:58.2]} 2. Nc3 {[%clk 0:04:58.2]}
2... Nf6 {[%clk 0:04:56.8]} 3. f4 {[%clk 0:04:57.1]} 3... d5 {[%clk 0:04:55.1]}
4. fxe5 {[%clk 0:04:56.2]} 4... Nxe4 {[%clk 0:04:54.5]} 5. Qf3 {[%clk
0:04:55.6]} 5... Nxc3 {[%clk 0:04:51.6]} 6. bxc3 {[%clk 0:04:55.5]} 6... Be6
{[%clk 0:04:48.1]} 7. d4 {[%clk 0:04:54.4]} 7... Be7 {[%clk 0:04:43]} 8. Qg3
{[%clk 0:04:53.2]} 8... Nd7 {[%clk 0:04:32.1]} 9. Qxg7 {[%clk 0:04:51]} 9... Rf8
{[%clk 0:04:29.9]} 10. Nf3 {[%clk 0:04:50.3]} 10... c5 {[%clk 0:04:23.2]} 11.
Bh6 {[%clk 0:04:49.4]} 11... cxd4 {[%clk 0:04:18.3]} 12. cxd4 {[%clk 0:04:47.6]}
12... Qa5+ {[%clk 0:04:16.6]} 13. Kf2 {[%clk 0:04:39.9]} 13... Qc3 {[%clk
0:04:11.7]} 14. Be2 {[%clk 0:04:36.6]} 14... O-O-O {[%clk 0:04:02.9]} 15. Qxh7
{[%clk 0:04:24.6]} 15... Rh8 {[%clk 0:03:57.4]} 16. Qd3 {[%clk 0:04:04.1]} 16...
Qxd3 {[%clk 0:03:53.3]} 17. cxd3 {[%clk 0:04:00]} 17... Rxh6 {[%clk 0:03:52.4]}
18. Rhc1+ {[%clk 0:03:59.7]} 18... Kb8 {[%clk 0:03:50.1]} 19. Rc2 {[%clk
0:03:36]} 19... Rc8 {[%clk 0:03:45.2]} 20. Rxc8+ {[%clk 0:03:26.5]} 20... Kxc8
{[%clk 0:03:45.1]} 21. Rc1+ {[%clk 0:03:26.1]} 21... Kb8 {[%clk 0:03:44.2]} 22.
Bd1 {[%clk 0:03:15.7]} 22... Bg4 {[%clk 0:03:36.4]} 23. h3 {[%clk 0:03:14]}
23... Bxf3 {[%clk 0:03:29.8]} 24. Bxf3 {[%clk 0:03:13.9]} 24... Nb6 {[%clk
0:03:27.4]} 25. Ke3 {[%clk 0:02:57.8]} 25... Bg5+ {[%clk 0:03:25.3]} 0-1

[Event "Live Chess"]
[Site "Chess.com"]
[Date "2023.05.21"]
[Round "-"]
[White "Long1968"]
[Black "Woodpusher500"]
[Result "1-0"]
[WhiteElo "1004"]
[BlackElo "996"]
[TimeControl "300"]
[EndTime "1:29:20 PDT"]
[Termination "Long1968 won by resignation"]

1. e4 {[%clk 0:04:58.7]} 1... e5 {[%clk 0:04:54.7]} 2. f4 {[%clk 0:04:56]} 2...
exf4 {[%clk 0:04:51.8]} 3. Bc4 {[%clk 0:04:53.7]} 3... g6 {[%clk 0:04:37.4]} 4.
Nf3 {[%clk 0:04:50.3]} 4... Bg7 {[%clk 0:04:22.2]} 5. d4 {[%clk 0:04:47.5]} 5...
Nf6 {[%clk 0:04:15.6]} 6. Bxf4 {[%clk 0:04:31.9]} 6... d6 {[%clk 0:04:10.4]} 7.
e5 {[%clk 0:04:24.4]} 7... dxe5 {[%clk 0:04:06.1]} 8. Bxe5 {[%clk 0:04:19.5]}
8... O-O {[%clk 0:04:03.2]} 9. O-O {[%clk 0:04:13.7]} 9... Nc6 {[%clk
0:03:58.3]} 10. c3 {[%clk 0:04:08.7]} 10... Ng4 {[%clk 0:03:50.3]} 11. Bxg7
{[%clk 0:03:57.9]} 11... Kxg7 {[%clk 0:03:47.8]} 12. Re1 {[%clk 0:03:37.1]}
12... Qd6 {[%clk 0:03:43]} 13. Na3 {[%clk 0:03:25.2]} 13... Qxh2+ {[%clk
0:03:38.4]} 14. Nxh2 {[%clk 0:03:20.4]} 14... Nxh2 {[%clk 0:03:35.1]} 15. Kxh2
{[%clk 0:03:17.9]} 15... Na5 {[%clk 0:03:28.9]} 16. Re7 {[%clk 0:03:09.9]} 16...
Be6 {[%clk 0:03:23.3]} 17. Bxe6 {[%clk 0:03:05.4]} 17... Rad8 {[%clk 0:03:15.5]}
18. Rxc7 {[%clk 0:02:48.2]} 18... Rd6 {[%clk 0:03:11]} 19. Bb3 {[%clk
0:02:36.6]} 19... Nxb3 {[%clk 0:03:06.9]} 20. Qxb3 {[%clk 0:02:31.2]} 20... Re6
{[%clk 0:03:02.7]} 21. Qxe6 {[%clk 0:02:19.5]} 21... Kg8 {[%clk 0:02:59.7]} 22.
Qe7 {[%clk 0:02:05.2]} 22... h5 {[%clk 0:02:53.8]} 23. Rf1 {[%clk 0:02:00.3]}
1-0

[Event "Live Chess"]
[Site "Chess.com"]
[Date "2023.05.21"]
[Round "-"]
[White "Ferrarifan27"]
[Black "OleksiyJr1"]
[Result "1-0"]
[WhiteElo "2083"]
[BlackElo "970"]
[TimeControl "300"]
[EndTime "1:29:21 PDT"]
[Termination "Ferrarifan27 won by resignation"]

1. e4 {[%clk 0:04:58]} 1... c5 {[%clk 0:04:58.5]} 2. Nf3 {[%clk 0:04:56.6]} 2...
Nc6 {[%clk 0:04:55.6]} 3. b4 {[%clk 0:04:54.9]} 3... d6 {[%clk 0:04:55.1]} 4.
bxc5 {[%clk 0:04:52.4]} 4... dxc5 {[%clk 0:04:54.6]} 5. Bb2 {[%clk 0:04:51.2]}
5... b6 {[%clk 0:04:52.2]} 6. d4 {[%clk 0:04:50.2]} 6... cxd4 {[%clk 0:04:50.7]}
7. Nxd4 {[%clk 0:04:49.4]} 7... Nxd4 {[%clk 0:04:49.6]} 8. Qxd4 {[%clk 0:04:48]}
8... Qxd4 {[%clk 0:04:48.2]} 9. Bxd4 {[%clk 0:04:47.9]} 9... Nf6 {[%clk
0:04:46.9]} 10. Nc3 {[%clk 0:04:42.6]} 10... e6 {[%clk 0:04:46.1]} 11. Bb5+
{[%clk 0:04:39.7]} 11... Bd7 {[%clk 0:04:44.6]} 12. O-O {[%clk 0:04:36]} 12...
Bxb5 {[%clk 0:04:42]} 13. Nxb5 {[%clk 0:04:34.6]} 13... Nxe4 {[%clk 0:04:37.1]}
14. Nc7+ {[%clk 0:04:31.4]} 14... Kd7 {[%clk 0:04:33.3]} 15. Nxa8 {[%clk
0:04:30.2]} 15... Bb4 {[%clk 0:04:29.3]} 16. a3 {[%clk 0:04:24.3]} 16... Bd2
{[%clk 0:04:24.3]} 17. Rfd1 {[%clk 0:04:20.5]} 17... Rxa8 {[%clk 0:04:21.6]} 18.
f3 {[%clk 0:04:18.2]} 18... Bc3 {[%clk 0:04:16.5]} 19. Bxc3+ {[%clk 0:04:17]}
19... Nd6 {[%clk 0:04:14.8]} 20. Bb4 {[%clk 0:04:16.2]} 20... Rc8 {[%clk
0:04:12.4]} 21. Rxd6+ {[%clk 0:04:12.9]} 21... Ke7 {[%clk 0:04:11]} 22. Rc6+
{[%clk 0:04:11.2]} 22... Kd8 {[%clk 0:04:07.8]} 23. Rd1+ {[%clk 0:04:08.9]} 1-0

[Event "Live Chess"]
[Site "Chess.com"]
[Date "2023.05.21"]
[Round "-"]
[White "SteveValentine83"]
[Black "whitedjohn"]
[Result "1-0"]
[WhiteElo "1532"]
[BlackElo "1630"]
[TimeControl "300"]
[EndTime "1:29:22 PDT"]
[Termination "SteveValentine83 won on time"]

1. e4 {[%clk 0:04:58.8]} 1... Nf6 {[%clk 0:04:58.7]} 2. Nc3 {[%clk 0:04:56.7]}
2... d5 {[%clk 0:04:57.5]} 3. exd5 {[%clk 0:04:55.6]} 3... Nxd5 {[%clk
0:04:56.5]} 4. Bc4 {[%clk 0:04:55.2]} 4... c6 {[%clk 0:04:55.2]} 5. Nf3 {[%clk
0:04:51.9]} 5... Bg4 {[%clk 0:04:53.6]} 6. O-O {[%clk 0:04:50.5]} 6... e6 {[%clk
0:04:52.6]} 7. h3 {[%clk 0:04:49]} 7... Bh5 {[%clk 0:04:51.3]} 8. d4 {[%clk
0:04:46.1]} 8... Be7 {[%clk 0:04:48.3]} 9. Re1 {[%clk 0:04:44.8]} 9... Nxc3
{[%clk 0:04:46.6]} 10. bxc3 {[%clk 0:04:43.7]} 10... O-O {[%clk 0:04:45.4]} 11.
Bd3 {[%clk 0:04:37.8]} 11... Nd7 {[%clk 0:04:36.9]} 12. Bf4 {[%clk 0:04:17.5]}
12... Nf6 {[%clk 0:04:31.5]} 13. Bg3 {[%clk 0:04:05.7]} 13... Qd5 {[%clk
0:04:23.3]} 14. Rb1 {[%clk 0:03:39.3]} 14... Bxf3 {[%clk 0:04:17.5]} 15. Qxf3
{[%clk 0:03:36.1]} 15... Qxf3 {[%clk 0:04:15.1]} 16. gxf3 {[%clk 0:03:35.4]}
16... b6 {[%clk 0:04:11.8]} 17. f4 {[%clk 0:03:19.5]} 17... Rfd8 {[%clk
0:04:03.4]} 18. f5 {[%clk 0:03:16.8]} 18... Nd5 {[%clk 0:03:28.1]} 19. fxe6
{[%clk 0:03:04.3]} 19... f6 {[%clk 0:03:26.8]} 20. c4 {[%clk 0:02:44]} 20... Nb4
{[%clk 0:03:21.7]} 21. c5 {[%clk 0:02:30.5]} 21... Nxd3 {[%clk 0:03:07.4]} 22.
cxd3 {[%clk 0:02:29.3]} 22... bxc5 {[%clk 0:02:58.2]} 23. dxc5 {[%clk
0:02:26.3]} 23... Bxc5 {[%clk 0:02:49.9]} 24. e7 {[%clk 0:02:09.7]} 24... Re8
{[%clk 0:02:47.9]} 25. Rb7 {[%clk 0:02:09]} 25... Kf7 {[%clk 0:02:29.4]} 26. Rc7
{[%clk 0:01:45.1]} 26... Rac8 {[%clk 0:02:20.1]} 27. Rxc8 {[%clk 0:01:40.8]}
27... Rxc8 {[%clk 0:02:18.7]} 28. Rb1 {[%clk 0:01:16.3]} 28... Bb6 {[%clk
0:02:02.9]} 29. a4 {[%clk 0:00:56.3]} 29... Kxe7 {[%clk 0:01:56.4]} 30. a5
{[%clk 0:00:55.1]} 30... Bxa5 {[%clk 0:01:50.8]} 31. Rb7+ {[%clk 0:00:54.2]}
31... Kf8 {[%clk 0:01:48.2]} 32. Rxa7 {[%clk 0:00:52.8]} 32... Bb6 {[%clk
0:01:30.7]} 33. Bd6+ {[%clk 0:00:49]} 33... Kg8 {[%clk 0:01:28.1]} 34. Rd7
{[%clk 0:00:45.2]} 34... Bd4 {[%clk 0:01:13.6]} 35. Kg2 {[%clk 0:00:41.6]} 35...
c5 {[%clk 0:01:08.7]} 36. Rb7 {[%clk 0:00:35.1]} 36... Rc6 {[%clk 0:01:03]} 37.
Bf4 {[%clk 0:00:32.4]} 37... Re6 {[%clk 0:00:43.2]} 38. Rc7 {[%clk 0:00:26.2]}
38... Re2 {[%clk 0:00:38.1]} 39. Bg3 {[%clk 0:00:24.2]} 39... Rd2 {[%clk
0:00:32.2]} 40. Rc8+ {[%clk 0:00:23]} 40... Kf7 {[%clk 0:00:30.7]} 41. Rc7+
{[%clk 0:00:19.5]} 41... Kg6 {[%clk 0:00:29.4]} 42. Bd6 {[%clk 0:00:17.4]} 42...
Rxd3 {[%clk 0:00:27.2]} 43. Bxc5 {[%clk 0:00:15.7]} 43... Bxc5 {[%clk
0:00:21.7]} 44. Rxc5 {[%clk 0:00:14.6]} 44... Rd2 {[%clk 0:00:18.9]} 45. Rc7
{[%clk 0:00:13.5]} 45... h5 {[%clk 0:00:17.2]} 46. Rc5 {[%clk 0:00:12.5]} 46...
Re2 {[%clk 0:00:11.5]} 47. Rc3 {[%clk 0:00:11.6]} 47... Kg5 {[%clk 0:00:09.3]}
48. Rg3+ {[%clk 0:00:11]} 48... Kh6 {[%clk 0:00:08.2]} 49. Rf3 {[%clk
0:00:10.1]} 49... Kg6 {[%clk 0:00:06.7]} 50. Rg3+ {[%clk 0:00:09.4]} 50... Kf7
{[%clk 0:00:05.8]} 51. Rf3 {[%clk 0:00:08.6]} 51... g5 {[%clk 0:00:05.1]} 52.
Rc3 {[%clk 0:00:07.2]} 52... Kg6 {[%clk 0:00:04.7]} 53. Rc6 {[%clk 0:00:06.3]}
53... Re5 {[%clk 0:00:03.6]} 54. Rc3 {[%clk 0:00:05.4]} 54... Kf5 {[%clk
0:00:02.7]} 55. Rd3 {[%clk 0:00:04.4]} 55... Re6 {[%clk 0:00:01.2]} 56. Rd8
{[%clk 0:00:03.6]} 56... Ke5 {[%clk 0:00:00.1]} 57. Rd3 {[%clk 0:00:03]} 1-0